bitfinex/quotes_BTCUSD_20241201
["timestamp","ask_amount","ask_price","bid_price","bid_amount"]
[1733088823092,0.025,97453.0,97452.0,0.16760009]
[1733088825112,0.0017288,97456.0,97452.0,0.16760009]
[1733088825352,0.0017288,97456.0,97455.0,0.13284521]
[1733088825571,0.0017288,97456.0,97455.0,0.15160262]
[1733088825792,0.0017288,97456.0,97455.0,0.15506721]
[1733088826677,0.0017288,97456.0,97455.0,0.16406721]
[1733088827632,0.0017288,97456.0,97455.0,0.16225139]
[1733088827862,0.0017288,97456.0,97455.0,0.17125139]
[1733088830141,0.0017288,97456.0,97455.0,0.17211569]
[1733088831046,0.0017288,97456.0,97455.0,0.30161569]
[1733088836049,0.0017288,97456.0,97455.0,0.25431569]
[1733088842971,0.0017288,97456.0,97455.0,0.17211569]
[1733088843183,0.0017288,97456.0,97455.0,0.17393145]
[1733088859319,0.01001334,97464.0,97455.0,0.17393145]
[1733088859565,0.03,97458.0,97457.0,0.03]
[1733088860031,0.03,97458.0,97457.0,0.0336951]
[1733088860938,0.03,97458.0,97457.0,0.14554031]
[1733088861613,0.03,97458.0,97457.0,0.15454031]
[1733088864000,0.03,97462.0,97457.0,0.15454031]
[1733088864251,0.03,97462.0,97461.0,0.13284521]
[1733088864722,0.03,97462.0,97461.0,0.13653719]
[1733088866616,0.03,97462.0,97461.0,0.14553719]
[1733088866839,0.03,97462.0,97461.0,0.15453719]
[1733088869686,0.03,97465.0,97461.0,0.15453719]
[1733088869906,0.03,97465.0,97464.0,0.13284521]
[1733088870397,0.03,97465.0,97464.0,0.13653141]
[1733088871075,0.03,97465.0,97464.0,0.14553141]
[1733088872950,0.03,97465.0,97464.0,0.15353141]
[1733088876534,0.03,97465.0,97464.0,0.28764716]
[1733088876763,0.03,97465.0,97464.0,0.31630736]
[1733088878103,0.0317284,97465.0,97464.0,0.31630736]
[1733088879416,0.0017284,97465.0,97464.0,0.31630736]
[1733088882568,0.0017284,97465.0,97464.0,0.03047595]
[1733088882800,0.0017284,97465.0,97464.0,0.13466088]
[1733088883032,0.0017284,97465.0,97464.0,0.14812697]
[1733088915449,0.0017284,97465.0,97464.0,0.1463113]
[1733088915665,0.0801284,97465.0,97464.0,0.10981021]
[1733088915881,0.1562284,97465.0,97464.0,0.10981021]
[1733088923427,0.1562284,97465.0,97464.0,0.11067441]
[1733088930420,0.0801284,97465.0,97464.0,0.11067441]
[1733088932310,0.0801284,97465.0,97464.0,0.11388024]
[1733088933754,0.0801284,97465.0,97464.0,0.12535468]
[1733088935337,0.0317284,97465.0,97464.0,0.12535468]
[1733088935549,0.0017284,97465.0,97464.0,0.12535468]
[1733088939429,0.0317284,97465.0,97464.0,0.12535468]
[1733088940363,0.0017284,97465.0,97464.0,0.12535468]
[1733088958292,0.0017284,97465.0,97464.0,0.12435468]
[1733088962683,0.0207231,97471.0,97464.0,0.12435468]
[1733088962909,0.0207231,97471.0,97470.0,0.11852365]
[1733088963356,0.0207231,97471.0,97470.0,0.12160132]
[1733088964265,0.021851,97471.0,97470.0,0.12160132]
[1733088964935,0.022851,97471.0,97470.0,0.13060132]
[1733088965407,0.021851,97471.0,97470.0,0.13060132]
[1733088965619,0.021851,97471.0,97470.0,0.14500006]
[1733088966839,0.022851,97471.0,97470.0,0.15100006]
[1733088967043,0.0021279,97471.0,97470.0,0.15100006]
[1733088968067,0.0021279,97471.0,97470.0,0.13660132]
[1733088969399,0.0038565,97471.0,97470.0,0.13660132]
[1733088973478,0.1520796,97471.0,97470.0,0.13660132]
[1733088974407,2.1536766,97471.0,97470.0,0.04807767]
[1733088974627,2.2314026,97471.0,97470.0,0.04807767]
[1733088974837,2.2314026,97471.0,97470.0,0.045]
[1733088975286,0.7250826,97471.0,97470.0,0.045]
[1733088975504,0.7240826,97471.0,97470.0,0.036]
[1733088975739,0.7250826,97471.0,97470.0,0.043]
[1733088975960,0.7240826,97471.0,97470.0,0.037]
[1733088976176,0.7240826,97471.0,97470.0,0.039]
[1733088983518,0.7240826,97471.0,97470.0,0.0341]
[1733088986237,0.7240826,97471.0,97470.0,0.0321]
[1733088986573,0.7183826,97471.0,97470.0,0.0251]
[1733088986772,0.7183826,97471.0,97470.0,0.0261]
[1733088986984,0.7163826,97471.0,97470.0,0.0261]
[1733088987891,0.7163826,97471.0,97470.0,0.0251]
[1733088988260,0.2846236,97471.0,97470.0,0.0251]
[1733088988456,0.1638236,97471.0,97464.0,0.0008642]
[1733088988667,0.0758231,97465.0,97464.0,0.0008642]
[1733088989696,0.1515231,97465.0,97464.0,0.0008642]
[1733088989921,0.1515231,97465.0,97464.0,0.0048642]
[1733088990791,0.15011668,97465.0,97464.0,0.0048642]
[1733089004057,0.15011668,97465.0,97464.0,0.1352782]
[1733089004552,0.15011668,97465.0,97464.0,0.13836515]
[1733089005663,0.15011668,97465.0,97464.0,0.13436515]
[1733089005893,0.15184528,97465.0,97464.0,0.13436515]
[1733089006126,0.15284528,97465.0,97464.0,0.13436515]
[1733089006572,0.15184528,97465.0,97464.0,0.13436515]
[1733089007009,0.15184528,97465.0,97464.0,0.13736515]
[1733089007517,0.15184528,97465.0,97464.0,0.13436515]
[1733089007972,0.15184528,97465.0,97464.0,0.13736515]
[1733089008783,0.15184528,97465.0,97464.0,0.15118809]
[1733089010151,0.15184528,97465.0,97464.0,0.13736515]
[1733089012557,0.15284528,97465.0,97464.0,0.13736515]
[1733089012975,0.15184528,97465.0,97464.0,0.13736515]
[1733089013209,0.15184528,97465.0,97464.0,0.13436515]
[1733089013508,0.15184528,97465.0,97464.0,0.13736515]
[1733089013721,0.15184528,97465.0,97464.0,0.13436515]
[1733089014137,0.15184528,97465.0,97464.0,0.13736515]
[1733089016575,0.15184528,97465.0,97464.0,0.13736515]
[1733089017208,0.15184528,97465.0,97464.0,0.15118809]
[1733089018020,0.07614528,97465.0,97464.0,0.15118809]
[1733089018657,0.07614528,97465.0,97464.0,0.13736515]
[1733089019647,0.03104528,97465.0,97464.0,0.13736515]
[1733089030827,0.03104528,97465.0,97464.0,0.24021036]
[1733089043280,0.0186927,97474.0,97464.0,0.24021036]
[1733089043496,0.0186927,97474.0,97466.0,0.0251]
[1733089043497,5.936e-05,97472.0,97466.0,0.0251]
[1733089043923,5.936e-05,97472.0,97467.0,0.00383289]
[1733089044340,5.936e-05,97472.0,97468.0,0.0251]
[1733089045001,5.936e-05,97472.0,97469.0,0.00383116]
[1733089045229,0.00205936,97472.0,97469.0,0.10667637]
[1733089045475,0.00205936,97472.0,97470.0,0.20974521]
[1733089045704,0.00205936,97472.0,97471.0,0.10899366]
[1733089045921,0.00205936,97472.0,97471.0,0.21566843]
[1733089046810,5.936e-05,97472.0,97471.0,0.21566843]
[1733089047034,0.00205936,97472.0,97471.0,0.21566843]
[1733089047484,5.936e-05,97472.0,97471.0,0.21566843]
[1733089047722,0.00105936,97472.0,97471.0,0.22466843]
[1733089047954,0.00105936,97472.0,97471.0,0.22766843]
[1733089052099,0.00192366,97472.0,97471.0,0.22766843]
[1733089061302,3.11996316,97500.0,97471.0,0.22766843]
[1733089061560,0.00059387,97496.0,97473.0,0.0251]
[1733089061779,0.00059387,97496.0,97475.0,0.0251]
[1733089062002,0.00059387,97496.0,97477.0,0.0251]
[1733089062227,0.00059387,97496.0,97479.0,0.0251]
[1733089062447,0.00059387,97496.0,97481.0,0.0251]
[1733089062662,0.00059387,97496.0,97483.0,0.0251]
[1733089062869,0.00059387,97496.0,97483.0,0.12794521]
[1733089063608,0.00359387,97496.0,97483.0,0.12794521]
[1733089064041,0.00559387,97496.0,97483.0,0.12794521]
[1733089064694,0.00359387,97496.0,97483.0,0.12794521]
[1733089065561,0.00059387,97496.0,97483.0,0.12794521]
[1733089066265,0.00359387,97496.0,97483.0,0.12794521]
[1733089066743,0.00359387,97496.0,97485.0,0.0251]
[1733089066744,0.00259387,97496.0,97485.0,0.0251]
[1733089066967,0.00159387,97496.0,97485.0,0.0251]
[1733089067414,3.09422613,97500.0,97487.0,0.0251]
[1733089067661,3.09422613,97500.0,97489.0,0.0251]
[1733089067662,0.570751,97499.0,97489.0,0.0251]
[1733089067866,0.002,97496.0,97489.0,0.0251]
[1733089068072,3.09422613,97500.0,97489.0,0.0251]
[1733089068296,0.297351,97498.0,97489.0,0.0251]
[1733089068503,3.09422613,97500.0,97489.0,0.0251]
[1733089068730,3.09422613,97500.0,97491.0,0.0251]
[1733089068943,0.147594,97499.0,97491.0,0.0251]
[1733089069356,0.003,97496.0,97491.0,0.0251]
[1733089069794,3.09179755,97500.0,97491.0,0.0251]
[1733089070029,0.001,97499.0,97491.0,0.0251]
[1733089070253,0.001,97499.0,97491.0,0.04492818]
[1733089070469,3.09179755,97500.0,97491.0,0.04492818]
[1733089070917,3.09279755,97500.0,97491.0,0.04492818]
[1733089071136,3.09179755,97500.0,97491.0,0.04492818]
[1733089071377,3.09179755,97500.0,97491.0,0.04592818]
[1733089071601,0.144714,97499.0,97491.0,0.04492818]
[1733089072749,0.145714,97499.0,97492.0,0.0251]
[1733089073200,0.001,97499.0,97492.0,0.0251]
[1733089073628,3.09179755,97500.0,97492.0,0.0251]
[1733089073853,3.09179755,97500.0,97493.0,0.0251]
[1733089074144,0.166254,97499.0,97493.0,0.0251]
[1733089074356,0.001,97499.0,97493.0,0.0251]
[1733089074808,0.001,97499.0,97494.0,0.0251]
[1733089075248,3.09179755,97500.0,97494.0,0.0251]
[1733089075688,3.09379755,97500.0,97494.0,0.0251]
[1733089075910,3.09379755,97500.0,97495.0,0.0251]
[1733089076129,3.09179755,97500.0,97495.0,0.0739]
[1733089076350,0.001,97499.0,97495.0,0.0739]
[1733089076796,3.09179755,97500.0,97495.0,0.0739]
[1733089077217,3.09379755,97500.0,97495.0,0.0739]
[1733089077442,3.09379755,97500.0,97495.0,0.0749]
[1733089077868,3.09379755,97500.0,97495.0,0.0739]
[1733089078084,3.09379755,97500.0,97495.0,0.0749]
[1733089086656,3.09253713,97500.0,97495.0,0.0749]
[1733089088196,3.09253713,97500.0,97495.0,0.076628]
[1733089094995,3.09253713,97500.0,97497.0,0.0251]
[1733089095901,3.09053713,97500.0,97497.0,0.0251]
[1733089096360,3.09253713,97500.0,97497.0,0.0261]
[1733089097698,2.94405404,97500.0,97499.0,0.0712]
[1733089097904,2.94405404,97500.0,97499.0,0.1521]
[1733089098764,2.94205404,97500.0,97499.0,0.1521]
[1733089098971,2.94405404,97500.0,97499.0,0.1521]
[1733089099951,2.94405404,97500.0,97499.0,0.1531]
[1733089100150,2.94405404,97500.0,97499.0,0.1675828]
[1733089100570,2.94505404,97500.0,97499.0,0.1755828]
[1733089100980,2.94505404,97500.0,97499.0,0.1601]
[1733089101818,2.94305404,97500.0,97499.0,0.1601]
[1733089102048,2.94305404,97500.0,97499.0,0.1621]
[1733089111721,2.94305404,97500.0,97499.0,0.26494521]
[1733089121899,2.93751818,97500.0,97499.0,0.26494521]
[1733089124683,2.93751818,97500.0,97499.0,0.29278539]
[1733089125576,2.78837666,97500.0,97499.0,0.29278539]
[1733089128461,2.64002319,97500.0,97499.0,0.29278539]
[1733089129848,2.64002319,97500.0,97499.0,0.29214488]
[1733089130056,2.14002319,97500.0,97499.0,0.29214488]
[1733089132992,1.99161798,97500.0,97499.0,0.29214488]
[1733089136180,1.99161798,97500.0,97499.0,0.29387348]
[1733089139897,1.99024098,97500.0,97499.0,0.29387348]
[1733089140127,1.99024098,97500.0,97499.0,0.30187348]
[1733089140361,1.99124098,97500.0,97499.0,0.30387348]
[1733089140819,1.49124098,97500.0,97499.0,0.30387348]
[1733089141275,1.49124098,97500.0,97499.0,0.30714908]
[1733089141500,1.49024098,97500.0,97499.0,0.29914908]
[1733089141741,1.23404098,97500.0,97499.0,0.31814908]
[1733089142020,1.23404098,97500.0,97499.0,0.30914908]
[1733089142258,1.23404098,97500.0,97499.0,0.31614908]
[1733089142704,1.23404098,97500.0,97499.0,0.31314908]
[1733089142932,1.23404098,97500.0,97499.0,0.32214908]
[1733089143384,1.12876598,97500.0,97499.0,0.32214908]
[1733089143613,0.97765149,97500.0,97499.0,0.31614908]
[1733089144316,0.84955149,97500.0,97499.0,0.31614908]
[1733089144609,0.85055149,97500.0,97499.0,0.32514908]
[1733089148379,0.85141579,97500.0,97499.0,0.32514908]
[1733089148609,0.70170098,97500.0,97499.0,0.32514908]
[1733089149783,0.31560142,97500.0,97499.0,0.2399089]
[1733089150657,0.31460142,97500.0,97499.0,0.2309089]
[1733089151181,0.31460142,97500.0,97499.0,0.2219089]
[1733089151611,0.31460142,97500.0,97499.0,0.2309089]
[1733089152048,0.31460142,97500.0,97499.0,0.2399089]
[1733089152503,0.31460142,97500.0,97499.0,0.2309089]
[1733089152747,0.31460142,97500.0,97499.0,0.2399089]
[1733089157860,0.15823872,97500.0,97499.0,0.2399089]
[1733089161248,0.00960218,97500.0,97499.0,0.2399089]
[1733089171236,0.00960218,97500.0,97499.0,0.27163617]
[1733089171466,0.00934308,97500.0,97499.0,0.27163617]
[1733089172618,0.00934308,97500.0,97499.0,0.25363617]
[1733089172848,0.00934308,97500.0,97499.0,0.20203617]
[1733089173278,0.00934308,97500.0,97499.0,0.20283151]
[1733089174293,0.00924799,97500.0,97499.0,0.20283151]
[1733089174517,0.00924799,97500.0,97499.0,0.2036148]
[1733089176648,0.04121592,97510.0,97509.0,0.04445949]
[1733089176860,0.04121592,97510.0,97509.0,0.17903197]
[1733089177076,0.12071592,97510.0,97509.0,0.18200327]
[1733089177973,0.12071592,97510.0,97509.0,0.19100327]
[1733089178213,0.12071592,97510.0,97509.0,0.20000327]
[1733089178429,0.1723095,97520.0,97519.0,0.03445949]
[1733089178662,0.1723095,97520.0,97519.0,0.1373047]
[1733089179124,0.1723095,97520.0,97519.0,0.14026934]
[1733089179803,0.17237039,97520.0,97519.0,0.14026934]
[1733089180040,0.17237039,97520.0,97519.0,0.1373047]
[1733089180511,0.17237039,97520.0,97519.0,0.14026934]
[1733089181507,0.30047039,97520.0,97519.0,0.14726934]
[1733089181589,0.30047039,97520.0,97519.0,0.15626934]
[1733089182899,0.30133469,97520.0,97519.0,0.15626934]
[1733089183386,0.30133469,97520.0,97519.0,0.1533047]
[1733089183828,0.30133469,97520.0,97519.0,0.15678026]
[1733089194017,0.14717243,97520.0,97519.0,0.15678026]
[1733089194158,0.14717243,97520.0,97519.0,0.1533047]
[1733089194355,0.14717243,97520.0,97519.0,0.15646576]
[1733089195392,0.00200733,97554.0,97534.0,0.03445949]
[1733089195393,0.01167538,97535.0,97534.0,0.03445949]
[1733089195659,0.01167538,97535.0,97534.0,0.14045488]
[1733089196314,0.01167538,97535.0,97534.0,0.1428316]
[1733089196708,0.01167538,97535.0,97534.0,0.1458316]
[1733089197080,0.01167538,97535.0,97534.0,0.1548316]
[1733089198647,0.13547538,97535.0,97534.0,0.1548316]
[1733089199072,0.13547538,97535.0,97534.0,0.1493047]
[1733089199491,0.13547538,97535.0,97534.0,0.15403884]
[1733089199911,0.12798817,97535.0,97534.0,0.15403884]
[1733089200330,0.12798817,97535.0,97534.0,0.1493047]
[1733089200759,0.07798817,97535.0,97534.0,0.15403884]
[1733089200960,0.02798817,97535.0,97534.0,0.15403884]
[1733089202678,0.02798817,97535.0,97534.0,0.14403884]
[1733089203773,0.07368817,97535.0,97534.0,0.14403884]
[1733089206490,0.07455237,97535.0,97534.0,0.14403884]
[1733089214714,0.07429655,97535.0,97534.0,0.14403884]
[1733089214933,0.07429655,97535.0,97534.0,0.1393047]
[1733089215152,0.07429655,97535.0,97534.0,0.14345363]
[1733089218428,0.07429655,97535.0,97534.0,0.14518163]
[1733089218933,0.07423212,97535.0,97534.0,0.14518163]
[1733089220079,0.05629922,97535.0,97534.0,0.14518163]
[1733089226707,0.07638098,97535.0,97534.0,0.14518163]
[1733089226936,0.07638098,97535.0,97534.0,0.14657321]
[1733089227158,0.05629922,97535.0,97534.0,0.15072357]
[1733089231281,0.0008642,97535.0,97534.0,0.15072357]
[1733089238151,0.0461,97546.0,97534.0,0.15072357]
[1733089238152,0.0091579,97549.0,97534.0,0.15072357]
[1733089238362,0.0091579,97549.0,97536.0,0.03]
[1733089238568,0.0008643,97550.0,97538.0,0.03]
[1733089238787,0.0008643,97550.0,97540.0,0.03]
[1733089239019,0.0008643,97550.0,97542.0,0.03]
[1733089239266,0.0008643,97550.0,97544.0,0.03]
[1733089239513,0.0008643,97550.0,97546.0,0.03]
[1733089239729,0.0008643,97550.0,97548.0,0.03]
[1733089239951,0.0008643,97550.0,97549.0,0.13284521]
[1733089240178,0.0008643,97550.0,97549.0,0.13693085]
[1733089241134,0.00085343,97550.0,97549.0,0.13693085]
[1733089241613,0.00017804,97550.0,97549.0,0.13693085]
[1733089241859,0.00117804,97550.0,97549.0,0.13693085]
[1733089242792,0.00117804,97550.0,97549.0,0.14093085]
[1733089245659,0.02743615,97562.0,97549.0,0.14093085]
[1733089245892,0.02743615,97562.0,97549.0,0.14110889]
[1733089246593,0.02743615,97562.0,97549.0,0.13710889]
[1733089246830,0.02843615,97562.0,97549.0,0.13710889]
[1733089247066,0.001,97562.0,97549.0,0.13710889]
[1733089247304,0.003,97562.0,97549.0,0.13710889]
[1733089248300,0.003,97562.0,97551.0,0.03]
[1733089248537,0.003,97562.0,97553.0,0.0292]
[1733089248776,0.003,97562.0,97555.0,0.0292]
[1733089248990,0.003,97562.0,97557.0,0.0292]
[1733089249234,0.002,97562.0,97557.0,0.13204521]
[1733089249453,0.003,97562.0,97558.0,0.00401312]
[1733089249670,0.003,97562.0,97559.0,0.0292]
[1733089249909,0.001,97562.0,97560.0,0.0039326]
[1733089250151,0.002,97562.0,97560.0,0.0039326]
[1733089250389,0.001,97562.0,97560.0,0.00507339]
[1733089251350,0.0017284,97563.0,97560.0,0.00507339]
[1733089251824,0.001,97562.0,97560.0,0.00507339]
[1733089252286,0.002,97562.0,97560.0,0.00507339]
[1733089252519,0.001,97562.0,97560.0,0.00507339]
[1733089253012,0.0008646,97562.0,97560.0,0.00507339]
[1733089253503,0.0018646,97562.0,97560.0,0.00507339]
[1733089254201,0.0028646,97562.0,97560.0,0.00507339]
[1733089257715,0.0028646,97562.0,97561.0,0.0292]
[1733089260603,0.222238,97580.0,97566.0,0.00506887]
[1733089260833,0.001,97580.0,97567.0,0.13204521]
[1733089261081,0.137684,97579.0,97567.0,0.13204521]
[1733089261299,0.001,97580.0,97568.0,0.00506706]
[1733089261517,0.001,97580.0,97570.0,0.0292]
[1733089262003,0.0003,97582.0,97571.0,0.00455311]
[1733089262239,0.143429,97581.0,97572.0,0.0292]
[1733089262474,0.124043,97581.0,97572.0,0.0292]
[1733089262688,0.1085,97580.0,97573.0,0.00455148]
[1733089262925,0.123992,97581.0,97573.0,0.00455148]
[1733089263139,0.0003,97582.0,97574.0,0.0292]
[1733089263597,0.0003,97582.0,97575.0,0.00383195]
[1733089265244,0.0008642,97580.0,97575.0,0.00383195]
[1733089265708,0.0008642,97580.0,97577.0,0.0292]
[1733089266149,0.0008642,97580.0,97578.0,0.00382991]
[1733089267805,0.0018642,97580.0,97578.0,0.00382991]
[1733089269522,0.0008642,97580.0,97578.0,0.00382991]
[1733089269736,0.0018642,97580.0,97578.0,0.00382991]
[1733089273723,0.0018642,97580.0,97579.0,0.0038187]
[1733089273955,0.0018642,97580.0,97579.0,0.00487882]
[1733089274186,0.0018642,97580.0,97577.0,0.02702991]
[1733089274635,0.0018642,97580.0,97578.0,0.0048794]
[1733089275087,0.00204221,97580.0,97578.0,0.0048794]
[1733089275544,0.00104221,97580.0,97578.0,0.0048794]
[1733089275764,0.00204221,97580.0,97578.0,0.0048794]
[1733089276238,0.00104221,97580.0,97578.0,0.0048794]
[1733089276477,0.00104221,97580.0,97579.0,0.07642991]
[1733089276722,0.00204221,97580.0,97579.0,0.07642991]
[1733089276954,0.00204221,97580.0,97579.0,0.08082036]
[1733089277190,0.00104221,97580.0,97579.0,0.08082036]
[1733089277417,0.00104221,97580.0,97579.0,0.18366557]
[1733089278593,0.00204221,97580.0,97579.0,0.26296557]
[1733089279045,0.00104221,97580.0,97579.0,0.26296557]
[1733089279266,0.00204221,97580.0,97579.0,0.26296557]
[1733089279488,0.00204221,97580.0,97579.0,0.26396557]
[1733089288316,0.00204221,97580.0,97579.0,0.13526557]
[1733089291866,0.00204221,97580.0,97579.0,0.18316557]
[1733089293427,0.00204221,97580.0,97579.0,0.26636557]
[1733089298029,0.00104221,97580.0,97579.0,0.26636557]
[1733089298270,0.00204221,97580.0,97579.0,0.26636557]
[1733089298728,0.00204221,97580.0,97579.0,0.26536557]
[1733089298954,0.00204221,97580.0,97579.0,0.26736557]
[1733089315858,0.00204221,97580.0,97579.0,0.36736557]
[1733089333594,0.00204221,97580.0,97579.0,0.36673591]
[1733089345487,0.00204221,97580.0,97579.0,0.36846431]
[1733089345716,0.00104221,97580.0,97579.0,0.36846431]
[1733089345936,0.00104221,97580.0,97579.0,0.36946431]
[1733089346577,0.00104221,97580.0,97579.0,0.37946431]
[1733089346811,0.00104221,97580.0,97579.0,0.37746431]
[1733089347297,0.00104221,97580.0,97579.0,0.38446431]
[1733089359511,0.0002,97589.0,97581.0,0.02640025]
[1733089359736,0.0002,97589.0,97585.0,0.02640025]
[1733089359982,0.0002,97589.0,97587.0,0.02640025]
[1733089360200,0.0002,97589.0,97588.0,0.27214546]
[1733089360417,0.0002,97589.0,97588.0,0.2763627]
[1733089360627,0.0012,97589.0,97588.0,0.2703627]
[1733089361301,0.0002,97589.0,97588.0,0.2703627]
[1733089361734,0.0002,97589.0,97588.0,0.26953395]
[1733089362367,0.0002,97589.0,97588.0,0.27853395]
[1733089362611,0.0002,97589.0,97588.0,0.27953395]
[1733089363489,0.0002,97589.0,97588.0,0.27853395]
[1733089363706,0.0002,97589.0,97588.0,0.28053395]
[1733089365274,0.0002,97589.0,97588.0,0.27153395]
[1733089365491,0.0002,97589.0,97588.0,0.27853395]
[1733089365749,0.0002,97589.0,97588.0,0.28153395]
[1733089365955,0.0002,97589.0,97588.0,0.27253395]
[1733089366171,0.0002,97589.0,97588.0,0.28153395]
[1733089366396,0.0008643,97598.0,97597.0,0.15930025]
[1733089366619,0.0008643,97598.0,97597.0,0.26214546]
[1733089366834,0.0008643,97598.0,97597.0,0.26592372]
[1733089367261,0.0008643,97598.0,97597.0,0.20802372]
[1733089367516,0.0008643,97598.0,97597.0,0.13302372]
[1733089368666,0.0008643,97598.0,97597.0,0.14102372]
[1733089368875,0.0008643,97598.0,97597.0,0.14202372]
[1733089369101,0.0008643,97598.0,97597.0,0.13402372]
[1733089369331,0.0008643,97598.0,97597.0,0.13902372]
[1733089370216,0.0008643,97598.0,97597.0,0.13302372]
[1733089371598,0.0008643,97598.0,97597.0,0.14002372]
[1733089372457,0.0008643,97598.0,97597.0,0.13302372]
[1733089372679,0.0008643,97598.0,97597.0,0.14002372]
[1733089380451,0.0008643,97598.0,97597.0,0.13302372]
[1733089380885,0.0008643,97598.0,97597.0,0.14002372]
[1733089403548,0.0008643,97598.0,97597.0,0.18742372]
[1733089408538,0.0002443,97598.0,97597.0,0.18742372]
[1733089416165,0.0002443,97598.0,97597.0,0.18915272]
[1733089417777,0.0002443,97598.0,97597.0,0.14175272]
[1733089422246,0.0002443,97598.0,97597.0,0.19015272]
[1733089422733,0.0002443,97598.0,97597.0,0.26655272]
[1733089423633,0.0002443,97598.0,97597.0,0.25955272]
[1733089423845,0.0002443,97598.0,97597.0,0.26655272]
[1733089424330,0.0002443,97598.0,97597.0,0.25955272]
[1733089424537,0.0002443,97598.0,97597.0,0.26855272]
[1733089425184,0.0002443,97598.0,97597.0,0.26982587]
[1733089425646,0.0002443,97598.0,97597.0,0.27182587]
[1733089430899,0.0002443,97598.0,97597.0,0.28182587]
[1733089433176,0.0002443,97598.0,97597.0,0.15702587]
[1733089446487,0.0002443,97598.0,97597.0,0.15034979]
[1733089459117,0.0002443,97598.0,97597.0,0.19954979]
[1733089459371,0.0002443,97598.0,97597.0,0.20982562]
[1733089462481,0.0002443,97598.0,97597.0,0.16062562]
[1733089468199,0.0002443,97598.0,97597.0,0.28952562]
[1733089471829,0.0002443,97598.0,97597.0,0.28882562]
[1733089472280,0.0002443,97598.0,97597.0,0.28242562]
[1733089477609,0.0002443,97598.0,97597.0,0.28115247]
[1733089477838,0.0002443,97598.0,97597.0,0.28094732]
[1733089485247,0.0002443,97598.0,97597.0,0.27944732]
[1733089488150,0.02553103,97628.0,97599.0,0.03]
[1733089488359,0.02553103,97628.0,97601.0,0.03]
[1733089488575,0.10297,97627.0,97603.0,0.03]
[1733089488786,0.10297,97627.0,97605.0,0.03]
[1733089489001,0.10297,97627.0,97607.0,0.03]
[1733089489231,0.10297,97627.0,97609.0,0.03]
[1733089489437,0.10297,97627.0,97611.0,0.03]
[1733089489615,0.10297,97627.0,97613.0,0.03]
[1733089489855,0.02553103,97628.0,97615.0,0.03]
[1733089490275,0.110494,97627.0,97616.0,0.00278066]
[1733089490923,0.104447,97626.0,97616.0,0.00278066]
[1733089491148,0.10875,97627.0,97616.0,0.00278066]
[1733089491367,0.141269,97627.0,97616.0,0.00278066]
[1733089497010,0.03462364,97628.0,97616.0,0.00278066]
[1733089497282,0.490211,97627.0,97616.0,0.00278066]
[1733089497714,0.463164,97626.0,97616.0,0.00278066]
[1733089498163,0.463543,97627.0,97616.0,0.00278066]
[1733089498829,0.441017,97626.0,97616.0,0.00278066]
[1733089499293,0.460783,97627.0,97616.0,0.00278066]
[1733089499517,0.50408,97627.0,97616.0,0.00278066]
[1733089499997,0.493823,97627.0,97616.0,0.00278066]
[1733089500226,0.47293,97626.0,97616.0,0.00278066]
[1733089500453,0.862292,97627.0,97616.0,0.00278066]
[1733089500660,1.217962,97627.0,97616.0,0.00278066]
[1733089501139,0.916462,97627.0,97615.0,0.03]
[1733089501343,0.791481,97626.0,97615.0,0.03]
[1733089501571,0.728878,97626.0,97616.0,0.00278005]
[1733089501796,0.729257,97627.0,97616.0,0.00278005]
[1733089502727,0.49533,97626.0,97616.0,0.00278005]
[1733089502934,0.49533,97626.0,97618.0,0.03]
[1733089503144,0.425145,97625.0,97620.0,0.03]
[1733089503357,0.474141,97627.0,97620.0,0.03]
[1733089503583,0.474141,97627.0,97621.0,0.00300833]
[1733089503814,0.474141,97627.0,97623.0,0.03]
[1733089504043,0.00092364,97628.0,97625.0,0.03]
[1733089504501,0.00092364,97628.0,97626.0,0.00300494]
[1733089505001,0.00092364,97628.0,97625.0,0.03]
[1733089505270,0.00092364,97628.0,97627.0,0.00300427]
[1733089505490,0.00092364,97628.0,97626.0,0.00300494]
[1733089505712,0.00092364,97628.0,97627.0,0.00277317]
[1733089506162,0.00092364,97628.0,97625.0,0.03]
[1733089506384,0.00092364,97628.0,97627.0,0.00300141]
[1733089506810,0.00092364,97628.0,97627.0,0.13584662]
[1733089507052,0.00092364,97628.0,97627.0,0.18524662]
[1733089511482,0.00092364,97628.0,97627.0,0.26674662]
[1733089520164,0.00092364,97628.0,97627.0,0.26847522]
[1733089560360,0.00092364,97628.0,97627.0,0.27847522]
[1733089560784,0.00092364,97628.0,97627.0,0.26847522]
[1733089560988,0.00092364,97628.0,97627.0,0.27747522]
[1733089561196,0.00092364,97628.0,97627.0,0.28347522]
[1733089567376,0.00092364,97628.0,97627.0,0.25808165]
[1733089572201,0.00092364,97628.0,97627.0,0.23938432]
[1733089605321,0.0002,97649.0,97627.0,0.23938432]
[1733089605563,0.0337,97659.0,97652.0,0.03]
[1733089605807,1.416261,97658.0,97652.0,0.03]
[1733089606050,1.416261,97658.0,97653.0,0.00296324]
[1733089606296,1.416261,97658.0,97652.0,0.03]
[1733089606725,1.385356,97658.0,97652.0,0.03]
[1733089607364,1.385356,97658.0,97653.0,0.002]
[1733089607591,1.385356,97658.0,97652.0,0.03]
[1733089608880,1.385356,97658.0,97652.0,0.032]
[1733089610250,0.57545,97657.0,97652.0,0.032]
[1733089610690,0.00059321,97659.0,97653.0,0.00296324]
[1733089610691,0.543354,97656.0,97653.0,0.00296324]
[1733089610919,0.635507,97658.0,97653.0,0.00296324]
[1733089611149,0.318492,97655.0,97654.0,0.03]
[1733089611629,0.199967,97655.0,97654.0,0.03]
[1733089611844,1.262537,97657.0,97654.0,0.03]
[1733089612302,0.0008646,97658.0,97654.0,0.03]
[1733089612303,0.482232,97656.0,97654.0,0.03]
[1733089612524,1.07662,97657.0,97654.0,0.03]
[1733089612752,0.427352,97655.0,97654.0,0.03]
[1733089612975,0.390842,97655.0,97654.0,0.033]
[1733089613200,0.311428,97655.0,97654.0,0.03]
[1733089613422,0.881356,97657.0,97654.0,0.03]
[1733089613684,0.865356,97657.0,97654.0,0.033]
[1733089613900,0.76295,97657.0,97654.0,0.03]
[1733089614117,0.513814,97656.0,97654.0,0.03]
[1733089614334,1.141495,97657.0,97654.0,0.03]
[1733089614793,0.501641,97656.0,97654.0,0.03]
[1733089615012,0.412967,97655.0,97654.0,0.03]
[1733089615242,0.962299,97657.0,97654.0,0.033]
[1733089615451,0.907602,97657.0,97654.0,0.03]
[1733089615678,0.910369,97657.0,97654.0,0.032]